fUSD/lending_fUSD_20250911
["ID","MTS","AMOUNT","RATE_DAILY","PERIOD"]
[384887906,1757619046013,-400.0,0.00027397,7]
[384887907,1757619046023,-400.0,0.00027397,7]
[384887908,1757619046032,-400.0,0.00027397,7]
[384887909,1757619046041,-400.0,0.00027397,7]
[384887910,1757619046051,-860.1,0.00027397,7]
[384887911,1757619046061,-1748.29,0.00027397,7]
[384887912,1757619046070,-400.0,0.00027397,7]
[384887913,1757619046079,-1086.42,0.00027397,7]
[384887914,1757619046088,-400.0,0.00027397,7]
[384887915,1757619046098,-1679.55,0.00027397,7]
[384887916,1757619046107,-282.27712872,0.00027397,7]
[384887917,1757619046117,-401.68322878,0.00027397,7]
[384887918,1757619046126,-718.79,0.00027397,7]
[384887919,1757619046135,-400.0,0.00027397,7]
[384887920,1757619046145,-400.0,0.00027397,7]
[384887921,1757619046154,-400.0,0.00027397,7]
[384887923,1757619046163,-1670.79,0.00027397,7]
[384887924,1757619046173,-400.0,0.00027397,7]
[384887925,1757619046183,-400.0,0.00027397,7]
[384887926,1757619046195,-400.0,0.00027397,7]
[384887927,1757619046204,-400.0,0.00027397,7]
[384887928,1757619046214,-856.78,0.00027397,7]
[384887929,1757619046223,-400.0,0.00027397,7]
[384887930,1757619046232,-400.0,0.00027397,7]
[384887931,1757619046241,-400.0,0.00027397,7]
[384887932,1757619046250,-400.0,0.00027397,7]
[384887933,1757619046260,-569.13,0.00027397,7]
[384887934,1757619046269,-400.0,0.00027397,7]
[384887935,1757619046278,-528.55,0.00027397,7]
[384887936,1757619046287,-400.0,0.00027397,7]
[384887937,1757619046295,-446.54,0.00027397,7]
[384887938,1757619046302,-400.0,0.00027397,7]
[384887939,1757619046311,-400.0,0.00027397,7]
[384887940,1757619046321,-707.71,0.00027397,7]
[384887941,1757619046330,-400.0,0.00027397,7]
[384887942,1757619046340,-150.0,0.00027397,2]
[384887943,1757619046349,-400.0,0.00027397,7]
[384887944,1757619046359,-500.0,0.00027397,2]
[384887945,1757619046368,-400.0,0.00027397,7]
[384887946,1757619046378,-500.0,0.00027397,2]
[384887947,1757619046387,-150.0,0.00027397,2]
[384887948,1757619046396,-150.0,0.00027397,2]
[384887949,1757619046406,-400.0,0.00027397,7]
[384887950,1757619046416,-400.0,0.00027397,7]
[384887951,1757619046435,-1320.12,0.00027397,7]
[384887952,1757619046445,-400.0,0.00027397,7]
[384887953,1757619046454,-400.0,0.00027397,7]
[384887954,1757619046710,-400.0,0.00027397,7]
[384887955,1757619046720,-400.0,0.00027397,7]
[384887956,1757619046729,-400.0,0.00027397,7]
[384887957,1757619046738,-400.0,0.00027397,7]
[384887958,1757619046747,-1121.3,0.00027397,7]
[384887959,1757619046755,-497.3,0.00027397,7]
[384887960,1757619046764,-400.0,0.00027397,7]
[384887961,1757619046773,-400.0,0.00027397,7]
[384887962,1757619046782,-400.0,0.00027397,7]
[384887963,1757619046791,-400.0,0.00027397,7]
[384887964,1757619046800,-400.0,0.00027397,7]
[384887965,1757619046809,-400.0,0.00027397,7]
[384887966,1757619046819,-400.0,0.00027397,7]
[384887967,1757619046828,-456.53194722,0.00027397,7]
[384887968,1757619046837,-693.55,0.00027397,7]
[384887969,1757619046847,-400.0,0.00027397,7]
[384887970,1757619046856,-1011.86,0.00027397,7]
[384887971,1757619046865,-400.0,0.00027397,7]
[384887972,1757619046874,-400.0,0.00027397,7]
[384887973,1757619046884,-400.0,0.00027397,7]
[384887974,1757619046894,-803.53,0.00027397,7]
[384887975,1757619046903,-400.0,0.00027397,7]
[384887976,1757619046912,-400.0,0.00027397,7]
[384887977,1757619046921,-400.0,0.00027397,7]
[384887978,1757619046930,-842.3,0.00027397,7]
[384887979,1757619046939,-400.0,0.00027397,7]
[384887980,1757619046949,-554.07,0.00027397,7]
[384887982,1757619046958,-400.0,0.00027397,7]
[384887983,1757619046968,-400.0,0.00027397,7]
[384887984,1757619046977,-1480.28,0.00027397,7]
[384887985,1757619046987,-438.72,0.00027397,7]
[384887986,1757619046998,-409.41604608,0.00027397,7]
[384887987,1757619047007,-400.0,0.00027397,7]
[384887988,1757619047017,-400.0,0.00027397,7]
[384887989,1757619047027,-666.01,0.00027397,7]
[384887990,1757619047038,-1290.19,0.00027397,7]
[384887991,1757619047047,-400.0,0.00027397,7]
[384887992,1757619047057,-400.0,0.00027397,7]
[384887993,1757619047066,-400.0,0.00027397,7]
[384887994,1757619047076,-825.9,0.00027397,7]
[384887995,1757619047084,-400.0,0.00027397,7]
[384887996,1757619047094,-400.0,0.00027397,7]
[384887997,1757619047103,-219.95885864,0.00027397,7]
[384887998,1757619047112,-486.02360787,0.00027397,7]
[384887999,1757619047120,-400.0,0.00027397,7]
[384888000,1757619047128,-400.0,0.00027397,7]
[384888001,1757619047136,-862.62,0.00027397,7]
[384888002,1757619047143,-407.86533339,0.00027397,7]
[384888003,1757619047153,-400.0,0.00027397,7]
[384888004,1757619047161,-1127.22,0.00027397,7]
[384888005,1757619047169,-402.51906935,0.00027397,7]
[384888006,1757619047178,-400.0,0.00027397,7]
[384888007,1757619047189,-400.0,0.00027397,7]
[384888008,1757619047198,-400.0,0.00027397,7]
[384888009,1757619047207,-414.34870337,0.00027397,7]
[384888010,1757619047215,-768.63,0.00027397,7]
[384888011,1757619047226,-426.64,0.00027397,7]
[384888012,1757619047237,-400.0,0.00027397,7]
[384888013,1757619047246,-400.0,0.00027397,7]
[384888014,1757619047256,-400.0,0.00027397,7]
[384888015,1757619047269,-400.0,0.00027397,7]
[384888016,1757619047280,-400.0,0.00027397,7]
[384888017,1757619047290,-400.0,0.00027397,7]
[384888018,1757619047300,-1496.3,0.00027397,7]
[384888019,1757619047310,-400.0,0.00027397,7]
[384888020,1757619047320,-400.0,0.00027397,7]
[384888021,1757619047330,-400.0,0.00027397,7]
[384888022,1757619047339,-400.0,0.00027397,7]
[384888023,1757619047349,-400.0,0.00027397,7]
[384888024,1757619047358,-461.87,0.00027397,7]
[384888025,1757619047366,-400.0,0.00027397,7]
[384888026,1757619047374,-400.0,0.00027397,7]
[384888027,1757619047381,-400.0,0.00027397,7]
[384888028,1757619047390,-400.0,0.00027397,7]
[384888029,1757619047397,-933.93,0.00027397,7]
[384888030,1757619047407,-400.0,0.00027397,7]
[384888031,1757619047416,-400.0,0.00027397,7]
[384888032,1757619047425,-648.55,0.00027397,7]
[384888033,1757619047435,-462.28,0.00027397,7]
[384888034,1757619047445,-679.81,0.00027397,7]
[384888035,1757619047454,-400.0,0.00027397,7]
[384888036,1757619047463,-400.0,0.00027397,7]
[384888037,1757619047472,-1267.5,0.00027397,7]
[384888038,1757619047482,-604.86,0.00027397,7]
[384888039,1757619047491,-400.0,0.00027397,7]
[384888040,1757619047500,-400.0,0.00027397,7]
[384888041,1757619047509,-656.72,0.00027397,7]
[384888042,1757619047518,-622.99,0.00027397,7]
[384888043,1757619047527,-400.0,0.00027397,7]
[384888044,1757619047536,-400.0,0.00027397,7]
[384888045,1757619047545,-400.0,0.00027397,7]
[384888046,1757619047554,-400.0,0.00027397,7]
[384888047,1757619047564,-957.24,0.00027397,7]
[384888048,1757619047573,-400.0,0.00027397,7]
[384888049,1757619047581,-510.46,0.00027397,7]
[384888050,1757619047590,-400.0,0.00027397,7]
[384888051,1757619047600,-225.67777942,0.00027397,7]
[384888052,1757619047609,-400.0,0.00027397,7]
[384888053,1757619047619,-400.0,0.00027397,7]
[384888054,1757619047628,-1205.92,0.00027397,7]
[384888055,1757619047637,-935.3,0.00027397,7]
[384888056,1757619047647,-423.75,0.00027397,7]
[384888057,1757619047658,-608.98,0.00027397,7]
[384888058,1757619047667,-400.0,0.00027397,7]
[384888059,1757619047678,-400.0,0.00027397,7]
[384888060,1757619047688,-1990.15,0.00027397,7]
[384888061,1757619047698,-567.16,0.00027397,7]
[384888062,1757619047707,-400.0,0.00027397,7]
[384888063,1757619047716,-400.0,0.00027397,7]
[384888064,1757619047727,-500.0,0.00027397,7]
[384888065,1757619047738,-400.0,0.00027397,7]
[384888066,1757619047749,-400.0,0.00027397,7]
[384888067,1757619047759,-400.0,0.00027397,7]
[384888068,1757619047770,-581.35,0.00027397,7]
[384888069,1757619047779,-400.0,0.00027397,7]
[384888070,1757619047790,-400.0,0.00027397,7]
[384888071,1757619047799,-400.0,0.00027397,7]
[384888072,1757619047809,-643.86,0.00027397,7]
[384888073,1757619047818,-400.0,0.00027397,7]
[384888074,1757619047827,-400.0,0.00027397,7]
[384888075,1757619047837,-400.0,0.00027397,7]
[384888076,1757619047847,-400.0,0.00027397,7]
[384888077,1757619047857,-400.0,0.00027397,7]
[384888078,1757619047869,-400.0,0.00027397,7]
[384888079,1757619047879,-400.0,0.00027397,7]
[384888080,1757619047890,-400.0,0.00027397,7]
[384888081,1757619047899,-400.0,0.00027397,7]
[384888082,1757619047910,-400.0,0.00027397,7]
[384888083,1757619047919,-598.8,0.00027397,7]
[384888084,1757619047928,-400.0,0.00027397,7]
[384888085,1757619047938,-502.32,0.00027397,7]
[384888086,1757619047946,-638.94,0.00027397,7]
[384888087,1757619047954,-1345.91,0.00027397,7]
[384888088,1757619047963,-400.0,0.00027397,7]
[384888089,1757619047973,-400.0,0.00027397,7]
[384888090,1757619047982,-400.0,0.00027397,7]
[384888091,1757619047991,-696.17,0.00027397,7]
[384888092,1757619048000,-400.0,0.00027397,7]
[384888093,1757619048010,-400.0,0.00027397,7]
[384888094,1757619048019,-400.0,0.00027397,7]
[384888095,1757619048028,-400.0,0.00027397,7]
[384888096,1757619048037,-400.0,0.00027397,7]
[384888097,1757619048046,-1532.58,0.00027397,7]
[384888098,1757619048055,-400.0,0.00027397,7]
[384888099,1757619048065,-400.0,0.00027397,7]
[384888100,1757619048074,-985.88,0.00027397,7]
[384888101,1757619048083,-400.0,0.00027397,7]
[384888102,1757619048093,-847.1,0.00027397,7]
[384888103,1757619048102,-400.0,0.00027397,7]
[384888104,1757619048111,-400.0,0.00027397,7]
[384888105,1757619048121,-500.0,0.00027397,7]
[384888106,1757619048130,-400.0,0.00027397,7]
[384888107,1757619048140,-500.0,0.00027397,7]
[384888108,1757619048149,-635.53303092,0.00027397,7]
[384888109,1757619048159,-400.0,0.00027397,7]
[384888110,1757619048168,-1787.86,0.00027397,7]
[384888111,1757619048178,-400.0,0.00027397,7]
[384888112,1757619048195,-400.0,0.00027397,7]
[384888113,1757619048204,-400.0,0.00027397,7]
[384888114,1757619048214,-406.35811174,0.00027397,7]
[384888115,1757619048223,-400.0,0.00027397,7]
[384888116,1757619048233,-2177.47,0.00027397,7]
[384888117,1757619048242,-400.0,0.00027397,7]
[384888118,1757619048251,-538.19,0.00027397,7]
[384888119,1757619048261,-1107.97,0.00027397,7]
[384888120,1757619048270,-500.0,0.00027397,7]
[384888121,1757619048279,-482.7316213,0.00027397,7]
[384888122,1757619048288,-400.0,0.00027397,7]
[384888123,1757619048298,-400.0,0.00027397,7]
[384888124,1757619048308,-400.0,0.00027397,7]
[384888125,1757619048318,-400.0,0.00027397,7]
[384888126,1757619048327,-561.97,0.00027397,7]
[384888127,1757619048336,-655.06,0.00027397,7]
[384888128,1757619048346,-400.0,0.00027397,7]
[384888129,1757619048355,-489.49,0.00027397,7]
[384888130,1757619048365,-665.61,0.00027397,7]
[384888131,1757619048375,-400.0,0.00027397,7]
[384888132,1757619048384,-400.0,0.00027397,7]
[384888133,1757619048393,-400.0,0.00027397,7]
[384888134,1757619048403,-400.0,0.00027397,7]
[384888135,1757619048412,-500.0,0.00027397,2]
[384888136,1757619048421,-400.0,0.00027397,7]
[384888137,1757619048430,-400.0,0.00027397,7]
[384888138,1757619048440,-500.0,0.00027397,7]
[384888139,1757619048449,-500.0,0.00027397,7]
[384888140,1757619048459,-400.0,0.00027397,7]
[384888141,1757619048468,-500.0,0.00027397,7]
[384888142,1757619048477,-500.0,0.00027397,7]
[384888143,1757619048486,-400.0,0.00027397,7]
[384888144,1757619048496,-453.42,0.00027397,7]
[384888145,1757619048505,-442.03,0.00027397,7]
[384888146,1757619048514,-400.0,0.00027397,7]
[384888147,1757619048523,-400.0,0.00027397,7]
[384888148,1757619048534,-416.97,0.00027397,7]
[384888149,1757619048543,-928.15,0.00027397,7]
[384888150,1757619048552,-501.13,0.00027397,7]
[384888151,1757619048562,-580.79,0.00027397,7]
[384888152,1757619048571,-400.0,0.00027397,7]
[384888153,1757619048580,-400.77956286,0.00027397,7]
[384888154,1757619048589,-400.0,0.00027397,7]
[384888155,1757619048599,-1531.66,0.00027397,7]
[384888156,1757619048609,-400.0,0.00027397,7]
[384888157,1757619048618,-400.0,0.00027397,7]
[384888158,1757619048627,-455.38,0.00027397,7]
[384888159,1757619048637,-400.0,0.00027397,7]
[384888160,1757619048645,-400.0,0.00027397,7]
[384888161,1757619048653,-400.0,0.00027397,7]
[384888162,1757619048661,-400.0,0.00027397,7]
[384888163,1757619048669,-400.0,0.00027397,7]
[384888164,1757619048676,-377.44979943,0.00027397,7]
[384888165,1757619048685,-400.0,0.00027397,7]
[384888166,1757619048695,-593.67,0.00027397,7]
[384888167,1757619048704,-400.0,0.00027397,7]
[384888168,1757619048713,-400.0,0.00027397,7]
[384888169,1757619048722,-971.31,0.00027397,7]
[384888170,1757619048732,-400.0,0.00027397,7]
[384888171,1757619048741,-970.55,0.00027397,7]
[384888172,1757619048751,-400.0,0.00027397,7]
[384888173,1757619048760,-400.0,0.00027397,7]
[384888174,1757619048770,-400.0,0.00027397,7]
[384888175,1757619048780,-400.0,0.00027397,7]
[384888176,1757619048789,-372.0230625,0.00027397,7]
[384888177,1757619048799,-539.87323481,0.00027397,7]
[384888178,1757619048809,-400.0,0.00027397,7]
[384888179,1757619048818,-1530.95,0.00027397,7]
[384888180,1757619048828,-400.0,0.00027397,7]
[384888181,1757619048837,-400.0,0.00027397,7]
[384888182,1757619048846,-400.0,0.00027397,7]
[384888183,1757619048856,-896.02,0.00027397,7]
[384888184,1757619048865,-482.47,0.00027397,7]
[384888185,1757619048874,-1069.15,0.00027397,7]
[384888186,1757619048883,-400.0,0.00027397,7]
[384888187,1757619048892,-2017.03,0.00027397,7]
[384888188,1757619048902,-1403.89,0.00027397,7]
[384888189,1757619048911,-1756.08,0.00027397,7]
[384888190,1757619048920,-400.0,0.00027397,7]
[384888191,1757619048929,-402.68015143,0.00027397,7]
[384888192,1757619048938,-500.0,0.00027397,7]
[384888193,1757619048948,-400.0,0.00027397,7]
[384888194,1757619048957,-1041.02,0.00027397,7]
[384888195,1757619048966,-893.86,0.00027397,7]
[384888196,1757619048975,-1374.32,0.00027397,7]
[384888197,1757619048984,-1527.78,0.00027397,7]
[384888198,1757619048993,-400.0,0.00027397,7]
[384888199,1757619049002,-400.0,0.00027397,7]
[384888200,1757619049012,-400.0,0.00027397,7]
[384888201,1757619049021,-2378.82,0.00027397,7]
[384888202,1757619049031,-400.0,0.00027397,7]
[384888203,1757619049039,-2013.51,0.00027397,7]
[384888204,1757619049048,-500.0,0.00027397,7]
[384888205,1757619049056,-584.24,0.00027397,7]
[384888206,1757619049065,-400.0,0.00027397,7]
[384888207,1757619049074,-400.0,0.00027397,7]
[384888208,1757619049084,-400.0,0.00027397,7]
[384888209,1757619049094,-1955.83,0.00027397,7]
[384888210,1757619049104,-400.0,0.00027397,7]
[384888211,1757619049114,-400.0,0.00027397,7]
[384888212,1757619049123,-403.70878956,0.00027397,7]
[384888213,1757619049133,-401.02544796,0.00027397,7]
[384888214,1757619049142,-488.88,0.00027397,7]
[384888215,1757619049151,-400.0,0.00027397,7]
[384888216,1757619049160,-400.0,0.00027397,7]
[384888217,1757619049169,-433.68831056,0.00027397,7]
[384888218,1757619049178,-400.0,0.00027397,7]
[384888219,1757619049191,-400.0,0.00027397,7]
[384888220,1757619049202,-400.0,0.00027397,7]
[384888221,1757619049211,-400.0,0.00027397,7]
[384888222,1757619049220,-900.08,0.00027397,7]
[384888223,1757619049231,-400.0,0.00027397,7]
[384888224,1757619049241,-512.28,0.00027397,7]
[384888225,1757619049250,-471.14,0.00027397,7]
[384888226,1757619049260,-400.0,0.00027397,7]
[384888227,1757619049271,-402.30008101,0.00027397,7]
[384888228,1757619049281,-400.0,0.00027397,7]
[384888229,1757619049291,-150.0,0.00027397,2]
[384888230,1757619049300,-404.98216171,0.00027397,7]
[384888231,1757619049310,-400.0,0.00027397,7]
[384888232,1757619049320,-1528.23,0.00027397,7]
[384888233,1757619049329,-400.0,0.00027397,7]
[384888234,1757619049339,-1000.0,0.00027397,7]
[384888235,1757619049349,-400.0,0.00027397,7]
[384888236,1757619049359,-786.22,0.00027397,7]
[384888237,1757619049368,-400.0,0.00027397,7]
[384888238,1757619049377,-430.22619587,0.00027397,7]
[384888239,1757619049387,-426.49,0.00027397,7]
[384888240,1757619049397,-400.0,0.00027397,7]
[384888241,1757619049406,-492.61,0.00027397,7]
[384888242,1757619049415,-1925.07,0.00027397,7]
[384888243,1757619049425,-1998.8,0.00027397,7]
[384888244,1757619049434,-1911.91,0.00027397,7]
[384888245,1757619049443,-400.0,0.00027397,7]
[384888246,1757619049452,-2591.09,0.00027397,7]
[384888247,1757619049462,-400.0,0.00027397,7]
[384888248,1757619049471,-400.0,0.00027397,7]
[384888249,1757619049480,-400.0,0.00027397,7]
[384888250,1757619049489,-879.68,0.00027397,7]
[384888251,1757619049499,-1240.44,0.00027397,7]
[384888252,1757619049508,-1540.93,0.00027397,7]
[384888253,1757619049517,-400.0,0.00027397,7]
[384888254,1757619049526,-625.93,0.00027397,7]
[384888255,1757619049536,-400.0,0.00027397,7]
[384888256,1757619049545,-400.0,0.00027397,7]
[384888257,1757619049554,-455.58,0.00027397,7]
[384888258,1757619049564,-1096.43,0.00027397,7]
[384888259,1757619049573,-684.81,0.00027397,7]
[384888260,1757619049788,-400.0,0.00027397,7]
[384888261,1757619049797,-400.0,0.00027397,7]
[384888262,1757619049807,-3351.35,0.00027397,7]
[384888263,1757619049816,-400.0,0.00027397,7]
[384888264,1757619049825,-1645.56,0.00027397,7]
[384888265,1757619049835,-1814.93,0.00027397,7]
[384888266,1757619049844,-400.0,0.00027397,7]
[384888267,1757619049854,-400.0,0.00027397,7]
[384888268,1757619049863,-400.0,0.00027397,7]
[384888269,1757619049872,-548.61432217,0.00027397,7]
[384888270,1757619049881,-400.0,0.00027397,7]
[384888271,1757619049891,-623.83,0.00027397,7]
[384888272,1757619049900,-517.72,0.00027397,7]
[384888273,1757619049910,-400.0,0.00027397,7]
[384888274,1757619049919,-2133.4,0.00027397,7]
[384888275,1757619049927,-3002.94,0.00027397,7]
[384888276,1757619049937,-400.0,0.00027397,7]
[384888277,1757619049946,-400.0,0.00027397,7]
[384888278,1757619049955,-1835.76,0.00027397,7]
[384888279,1757619049964,-400.0,0.00027397,7]
[384888280,1757619049973,-1367.01,0.00027397,7]
[384888281,1757619049982,-400.0,0.00027397,7]
[384888282,1757619049990,-400.0,0.00027397,7]
[384888283,1757619049999,-400.0,0.00027397,7]
[384888284,1757619050008,-400.0,0.00027397,7]
[384888285,1757619050017,-400.0,0.00027397,7]
[384888286,1757619050027,-845.08,0.00027397,7]
[384888287,1757619050035,-400.0,0.00027397,7]
[384888288,1757619050046,-400.0,0.00027397,7]
[384888289,1757619050055,-400.0,0.00027397,7]
[384888290,1757619050064,-2154.52,0.00027397,7]
[384888291,1757619050074,-400.0,0.00027397,7]
[384888292,1757619050083,-400.0,0.00027397,7]
[384888293,1757619050092,-400.0,0.00027397,7]
[384888294,1757619050102,-1424.03,0.00027397,7]
[384888295,1757619050110,-400.0,0.00027397,7]
[384888296,1757619050120,-400.0,0.00027397,7]
[384888297,1757619050130,-400.0,0.00027397,7]
[384888298,1757619050139,-400.0,0.00027397,7]
[384888299,1757619050148,-400.0,0.00027397,7]
[384888300,1757619050158,-400.0,0.00027397,7]
[384888301,1757619050167,-450.75,0.00027397,7]
[384888302,1757619050176,-3775.58,0.00027397,7]
[384888303,1757619050188,-402.57244431,0.00027397,7]
[384888304,1757619050199,-400.0,0.00027397,7]
[384888305,1757619050209,-1084.05,0.00027397,7]
[384888306,1757619050220,-2248.8,0.00027397,7]
[384888307,1757619050231,-500.0,0.00027397,7]
[384888308,1757619050240,-400.0,0.00027397,7]
[384888309,1757619050249,-500.0,0.00027397,7]
[384888310,1757619050258,-500.0,0.00027397,7]
[384888311,1757619050271,-438.13,0.00027397,7]
[384888312,1757619050282,-400.0,0.00027397,7]
[384888313,1757619050291,-2600.58,0.00027397,7]
[384888314,1757619050301,-400.0,0.00027397,7]
[384888315,1757619050310,-400.0,0.00027397,7]
[384888316,1757619050319,-409.31,0.00027397,7]
[384888317,1757619050328,-500.0,0.00027397,2]
[384888318,1757619050337,-500.0,0.00027397,2]
[384888319,1757619050346,-500.0,0.00027397,2]
[384888320,1757619050355,-2757.54,0.00027397,7]
[384888321,1757619050364,-500.0,0.00027397,2]
[384888322,1757619050373,-400.0,0.00027397,7]
[384888323,1757619050382,-400.0,0.00027397,7]
[384888324,1757619050390,-500.0,0.00027397,2]
[384888325,1757619050400,-500.0,0.00027397,2]
[384888326,1757619050409,-500.0,0.00027397,2]
[384888327,1757619050418,-1951.84,0.00027397,7]
[384888328,1757619050427,-500.0,0.00027397,2]
[384888329,1757619050436,-500.0,0.00027397,2]
[384888330,1757619050445,-400.0,0.00027397,7]
[384888331,1757619050455,-301.40011681,0.00027397,2]
[384888332,1757619050463,-400.0,0.00027397,7]
[384888333,1757619050473,-400.0,0.00027397,7]
[384888334,1757619050482,-400.0,0.00027397,7]
[384888335,1757619050491,-400.0,0.00027397,7]
[384888336,1757619050501,-404.92491076,0.00027397,7]
[384888337,1757619050511,-802.94,0.00027397,7]
[384888338,1757619050520,-400.0,0.00027397,7]
[384888339,1757619050529,-1570.01,0.00027397,7]
[384888340,1757619050539,-679.02,0.00027397,7]
[384888341,1757619050548,-1947.87,0.00027397,7]
[384888342,1757619050557,-435.51,0.00027397,7]
[384888343,1757619050568,-400.0,0.00027397,7]
[384888344,1757619050577,-400.0,0.00027397,7]
[384888345,1757619050586,-400.0,0.00027397,7]
[384888346,1757619050595,-561.95,0.00027397,7]
[384888347,1757619050605,-662.15,0.00027397,7]
[384888348,1757619050614,-400.0,0.00027397,7]
[384888349,1757619050623,-400.0,0.00027397,7]
[384888350,1757619050634,-400.0,0.00027397,7]
[384888351,1757619050644,-400.0,0.00027397,7]
[384888352,1757619050653,-400.0,0.00027397,7]
[384888353,1757619050663,-402.3540469,0.00027397,7]
[384888354,1757619050672,-2369.91,0.00027397,7]
[384888355,1757619050681,-400.0,0.00027397,7]
[384888356,1757619050691,-400.0,0.00027397,7]
[384888357,1757619050700,-400.0,0.00027397,7]
[384888358,1757619050710,-3062.44,0.00027397,7]
[384888359,1757619050719,-857.8,0.00027397,7]
[384888360,1757619050729,-1578.99,0.00027397,7]
[384888361,1757619050738,-400.0,0.00027397,7]
[384888362,1757619050748,-500.0,0.00027397,7]
[384888363,1757619050758,-304.6,0.00027397,7]
[384888364,1757619050767,-400.0,0.00027397,7]
[384888365,1757619050776,-400.0,0.00027397,7]
[384888366,1757619050785,-500.0,0.00027397,7]
[384888367,1757619050795,-500.0,0.00027397,7]
[384888368,1757619050804,-500.0,0.00027397,7]
[384888369,1757619050813,-500.0,0.00027397,7]
[384888370,1757619050822,-479.86,0.00027397,7]
[384888371,1757619050831,-400.0,0.00027397,7]
[384888372,1757619050841,-500.0,0.00027397,7]
[384888373,1757619050850,-500.0,0.00027397,7]
[384888374,1757619050859,-500.0,0.00027397,7]
[384888375,1757619050869,-500.0,0.00027397,7]
[384888376,1757619050879,-1700.31,0.00027397,7]
[384888377,1757619050888,-400.0,0.00027397,7]
[384888378,1757619050899,-400.0,0.00027397,7]
[384888379,1757619050909,-400.0,0.00027397,7]
[384888380,1757619050919,-1165.35,0.00027397,7]
[384888381,1757619050931,-484.14,0.00027397,7]
[384888382,1757619050941,-3115.27,0.00027397,7]
[384888383,1757619050951,-1165.35,0.00027397,7]
[384888384,1757619050960,-400.0,0.00027397,7]
[384888385,1757619050969,-500.0,0.00027397,7]
[384888386,1757619050978,-1165.35,0.00027397,7]
[384888387,1757619050987,-500.0,0.00027397,7]
[384888388,1757619050996,-1165.35,0.00027397,7]
[384888389,1757619051005,-500.0,0.00027397,7]
[384888390,1757619051015,-1165.35,0.00027397,7]
[384888391,1757619051024,-1165.35,0.00027397,7]
[384888392,1757619051034,-1165.35,0.00027397,7]
[384888393,1757619051043,-400.0,0.00027397,7]
[384888394,1757619051054,-3119.82,0.00027397,7]
[384888395,1757619051064,-1165.35,0.00027397,7]
[384888396,1757619051073,-1165.35,0.00027397,7]
[384888397,1757619051082,-1908.93,0.00027397,7]
[384888398,1757619051091,-824.9,0.00027397,7]
[384888399,1757619051100,-400.0,0.00027397,7]
[384888400,1757619051109,-400.0,0.00027397,7]
[384888401,1757619051118,-1979.79,0.00027397,7]
[384888402,1757619051130,-954.06,0.00027397,7]
[384888403,1757619051139,-2570.7,0.00027397,7]
[384888404,1757619051148,-400.0,0.00027397,7]
[384888405,1757619051158,-624.75,0.00027397,7]
[384888406,1757619051167,-400.0,0.00027397,7]
[384888407,1757619051176,-852.72,0.00027397,7]